fUSD/lending_fUSD_20241223
["ID","MTS","AMOUNT","RATE_DAILY","PERIOD"]
[346409833,1734947480236,-500.0,0.00019726,2]
[346409834,1734947480250,-2176.49,0.00019726,2]
[346409835,1734947480265,-772.36,0.00019726,2]
[346409836,1734947480279,-500.0,0.00019726,2]
[346409837,1734947480293,-500.0,0.00019726,2]
[346409838,1734947480307,-561.98,0.00019726,2]
[346409839,1734947480321,-290.106131,0.00019726,2]
[346409840,1734947480335,-500.0,0.00019726,2]
[346409841,1734947480349,-500.0,0.00019726,2]
[346409842,1734947480364,-500.0,0.00019726,2]
[346409843,1734947480378,-500.0,0.00019726,2]
[346409844,1734947480392,-500.0,0.00019726,2]
[346409845,1734947480407,-503.48843774,0.00019726,2]
[346409846,1734947480422,-500.0,0.00019726,2]
[346409847,1734947480436,-500.0,0.00019726,2]
[346409848,1734947480450,-290.106131,0.00019726,2]
[346409849,1734947480464,-500.0,0.00019726,2]
[346409850,1734947480478,-500.0,0.00019726,2]
[346409851,1734947480493,-500.0,0.00019726,2]
[346409852,1734947480508,-500.0,0.00019726,2]
[346409853,1734947480522,-500.0,0.00019726,2]
[346409854,1734947480536,-509.3594999,0.00019726,2]
[346409855,1734947480550,-1579.18,0.00019726,2]
[346409856,1734947480564,-2072.34,0.00019726,2]
[346409857,1734947480577,-500.0,0.00019726,2]
[346409858,1734947480596,-500.0,0.00019726,2]
[346409859,1734947480610,-151.0,0.00019726,2]
[346409860,1734947480624,-1152.72,0.00019726,2]
[346409861,1734947480639,-500.0,0.00019726,2]
[346409862,1734947480653,-500.0,0.00019726,2]
[346409863,1734947480666,-500.0,0.00019726,2]
[346409864,1734947480681,-500.0,0.00019726,2]
[346409865,1734947480695,-371.858557,0.00019726,2]
[346409866,1734947480710,-960.68,0.00019726,2]
[346409867,1734947480725,-995.51,0.00019726,2]
[346409868,1734947480740,-500.0,0.00019726,2]
[346409869,1734947480755,-500.0,0.00019726,2]
[346409870,1734947480769,-508.85,0.00019726,2]
[346409871,1734947480787,-1867.52,0.00019726,2]
[346409872,1734947480801,-771.24,0.00019726,2]
[346409873,1734947480816,-500.0,0.00019726,2]
[346409874,1734947480832,-500.0,0.00019726,2]
[346409875,1734947480846,-500.0,0.00019726,2]
[346409876,1734947480861,-500.0,0.00019726,2]
[346409877,1734947480875,-197.651259,0.00019726,2]
[346409878,1734947480890,-500.0,0.00019726,2]
[346409879,1734947480905,-500.0,0.00019726,2]
[346409880,1734947480920,-197.651259,0.00019726,2]
[346409881,1734947480935,-500.0,0.00019726,2]
[346409882,1734947480949,-500.0,0.00019726,2]
[346409883,1734947480965,-967.79,0.00019726,2]
[346409884,1734947480980,-500.0,0.00019726,2]
[346409885,1734947480995,-644.12,0.00019726,2]
[346409886,1734947481010,-4081.95,0.00019726,2]
[346409887,1734947481024,-500.0,0.00019726,2]
[346409888,1734947481038,-500.0,0.00019726,2]
[346409889,1734947481053,-762.34,0.00019726,2]
[346409890,1734947481067,-500.0,0.00019726,2]
[346409891,1734947481081,-500.0,0.00019726,2]
[346409892,1734947481096,-714.74,0.00019726,2]
[346409893,1734947481111,-500.0,0.00019726,2]
[346409894,1734947481125,-151.0,0.00019726,2]
[346409895,1734947481140,-500.0,0.00019726,2]
[346409896,1734947481154,-500.0,0.00019726,2]
[346409897,1734947481169,-500.0,0.00019726,2]
[346409898,1734947481184,-867.36,0.00019726,2]
[346409899,1734947481198,-500.0,0.00019726,2]
[346409900,1734947481212,-500.0,0.00019726,2]
[346409901,1734947481228,-500.0,0.00019726,2]
[346409902,1734947481243,-1635.0,0.00019726,2]
[346409903,1734947481258,-500.0,0.00019726,2]
[346409904,1734947481272,-500.0,0.00019726,2]
[346409905,1734947481287,-500.0,0.00019726,2]
[346409906,1734947481302,-151.0,0.00019726,2]
[346409907,1734947481317,-500.0,0.00019726,2]
[346409908,1734947481331,-508.72153367,0.00019726,2]
[346409909,1734947481345,-500.0,0.00019726,2]
[346409910,1734947481360,-151.0,0.00019726,2]
[346409911,1734947481373,-500.0,0.00019726,2]
[346409912,1734947481388,-500.0,0.00019726,2]
[346409913,1734947481617,-856.02,0.00019726,2]
[346409914,1734947481629,-500.0,0.00019726,2]
[346409915,1734947481638,-500.0,0.00019726,2]
[346409916,1734947481647,-500.0,0.00019726,2]
[346409917,1734947481656,-1051.15,0.00019726,2]
[346409918,1734947481665,-500.0,0.00019726,2]
[346409919,1734947481675,-500.0,0.00019726,2]
[346409920,1734947481684,-1194.53,0.00019726,2]
[346409921,1734947481693,-500.0,0.00019726,2]
[346409922,1734947481703,-500.0,0.00019726,2]
[346409923,1734947481712,-151.0,0.00019726,2]
[346409924,1734947481724,-500.0,0.00019726,2]
[346409925,1734947481734,-500.0,0.00019726,2]
[346409926,1734947481743,-503.9924852,0.00019726,2]
[346409927,1734947481752,-1086.41,0.00019726,2]
[346409928,1734947481761,-500.0,0.00019726,2]
[346409929,1734947481770,-500.0,0.00019726,2]
[346409930,1734947481780,-1994.21,0.00019726,2]
[346409931,1734947481792,-502.92753952,0.00019726,2]
[346409932,1734947481801,-500.0,0.00019726,2]
[346409933,1734947481811,-151.0,0.00019726,2]
[346409934,1734947481820,-1206.04,0.00019726,2]
[346409935,1734947481831,-500.0,0.00019726,2]
[346409936,1734947481840,-1792.59,0.00019726,2]
[346409937,1734947481849,-502.99,0.00019726,2]
[346409938,1734947481858,-500.0,0.00019726,2]
[346409939,1734947481868,-660.23,0.00019726,2]
[346409940,1734947481877,-518.4,0.00019726,2]
[346409941,1734947481886,-500.0,0.00019726,2]
[346409942,1734947481896,-500.0,0.00019726,2]
[346409943,1734947481904,-500.0,0.00019726,2]
[346409944,1734947481913,-1002.03,0.00019726,2]
[346409945,1734947481923,-500.0,0.00019726,2]
[346409946,1734947481932,-1088.2,0.00019726,2]
[346409947,1734947481942,-500.0,0.00019726,2]
[346409948,1734947481953,-500.0,0.00019726,2]
[346409949,1734947481962,-500.0,0.00019726,2]
[346409950,1734947481976,-500.0,0.00019726,2]
[346409951,1734947481985,-852.03,0.00019726,2]
[346409952,1734947481995,-665.81,0.00019726,2]
[346409953,1734947482004,-151.0,0.00019726,2]
[346409954,1734947482013,-505.29,0.00019726,2]
[346409955,1734947482023,-500.0,0.00019726,2]
[346409956,1734947482031,-427.014721,0.00019726,2]
[346409957,1734947482040,-1034.25,0.00019726,2]
[346409958,1734947482049,-500.0,0.00019726,2]
[346409959,1734947482058,-500.0,0.00019726,2]
[346409960,1734947482067,-151.0,0.00019726,2]
[346409961,1734947482076,-500.0,0.00019726,2]
[346409962,1734947482085,-990.3,0.00019726,2]
[346409963,1734947482094,-500.0,0.00019726,2]
[346409964,1734947482102,-151.0,0.00019726,2]
[346409965,1734947482111,-500.0,0.00019726,2]
[346409966,1734947482120,-500.0,0.00019726,2]
[346409967,1734947482129,-500.0,0.00019726,2]
[346409968,1734947482138,-151.0,0.00019726,2]
[346409969,1734947482146,-500.0,0.00019726,2]
[346409970,1734947482155,-500.0,0.00019726,2]
[346409971,1734947482164,-728.71,0.00019726,2]
[346409972,1734947482173,-2142.79,0.00019726,2]
[346409973,1734947482181,-489.56790753,0.00019726,2]
[346409974,1734947482190,-500.0,0.00019726,2]
[346409975,1734947482199,-1379.19,0.00019726,2]
[346409976,1734947482209,-500.0,0.00019726,2]
[346409977,1734947482220,-501.05203187,0.00019726,2]
[346409978,1734947482230,-500.0,0.00019726,2]
[346409979,1734947482239,-500.0,0.00019726,2]
[346409980,1734947482248,-151.0,0.00019726,2]
[346409981,1734947482257,-192.33094,0.00019726,2]
[346409982,1734947482267,-962.38,0.00019726,2]
[346409983,1734947482277,-500.0,0.00019726,2]
[346409984,1734947482287,-500.0,0.00019726,2]
[346409985,1734947482296,-192.33094,0.00019726,2]
[346409986,1734947482305,-603.91,0.00019726,2]
[346409987,1734947482315,-500.0,0.00019726,2]
[346409988,1734947482324,-500.0,0.00019726,2]
[346409989,1734947482333,-500.0,0.00019726,2]
[346409990,1734947482343,-500.0,0.00019726,2]
[346409991,1734947482351,-500.0,0.00019726,2]
[346409992,1734947482361,-500.0,0.00019726,2]
[346409993,1734947482370,-151.0,0.00019726,2]
[346409994,1734947482379,-500.0,0.00019726,2]
[346409995,1734947482388,-500.0,0.00019726,2]
[346409996,1734947482397,-500.0,0.00019726,2]
[346409997,1734947482406,-500.0,0.00019726,2]
[346409998,1734947482415,-500.0,0.00019726,2]
[346409999,1734947482424,-500.0,0.00019726,2]
[346410000,1734947482433,-500.0,0.00019726,2]
[346410001,1734947482442,-500.0,0.00019726,2]
[346410002,1734947482452,-2321.98,0.00019726,2]
[346410003,1734947482461,-500.0,0.00019726,2]
[346410004,1734947482471,-500.0,0.00019726,2]
[346410005,1734947482480,-1219.44,0.00019726,2]
[346410006,1734947482489,-500.0,0.00019726,2]
[346410007,1734947482498,-699.94,0.00019726,2]
[346410008,1734947482508,-500.0,0.00019726,2]
[346410009,1734947482517,-1820.52,0.00019726,2]
[346410010,1734947482526,-500.0,0.00019726,2]
[346410011,1734947482535,-375.53408145,0.00019726,2]
[346410012,1734947482544,-500.0,0.00019726,2]
[346410013,1734947482553,-251.32,0.00019726,2]
[346410014,1734947482562,-676.27,0.00019726,2]
[346410015,1734947482571,-500.0,0.00019726,2]
[346410016,1734947482581,-1570.71,0.00019726,2]
[346410017,1734947482590,-500.0,0.00019726,2]
[346410018,1734947482599,-758.47,0.00019726,2]
[346410019,1734947482609,-882.23,0.00019726,2]
[346410020,1734947482619,-500.0,0.00019726,2]
[346410021,1734947482628,-500.0,0.00019726,2]
[346410022,1734947482637,-1360.46,0.00019726,2]
[346410023,1734947482646,-500.0,0.00019726,2]
[346410024,1734947482655,-500.0,0.00019726,2]
[346410025,1734947482664,-500.0,0.00019726,2]
[346410026,1734947482673,-903.78,0.00019726,2]
[346410027,1734947482682,-498.43623597,0.00019726,2]
[346410028,1734947482691,-500.0,0.00019726,2]
[346410029,1734947482700,-827.23,0.00019726,2]
[346410030,1734947482709,-500.0,0.00019726,2]
[346410031,1734947482719,-619.39015089,0.00019726,2]
[346410032,1734947482728,-504.91413338,0.00019726,2]
[346410033,1734947482738,-504.48,0.00019726,2]
[346410034,1734947482747,-500.0,0.00019726,2]
[346410035,1734947482756,-506.26,0.00019726,2]
[346410036,1734947482766,-500.0,0.00019726,2]
[346410037,1734947482777,-151.0,0.00019726,2]
[346410038,1734947482789,-500.0,0.00019726,2]
[346410039,1734947482799,-500.0,0.00019726,2]
[346410040,1734947482808,-159.211888,0.00019726,2]
[346410041,1734947482817,-500.0,0.00019726,2]
[346410042,1734947482827,-500.0,0.00019726,2]
[346410043,1734947482836,-500.0,0.00019726,2]
[346410044,1734947482845,-500.0,0.00019726,2]
[346410045,1734947482854,-500.0,0.00019726,2]
[346410046,1734947482864,-500.0,0.00019726,2]
[346410047,1734947482873,-2009.6,0.00019726,2]
[346410048,1734947482882,-737.32,0.00019726,2]
[346410049,1734947482892,-707.95,0.00019726,2]
[346410050,1734947482901,-500.0,0.00019726,2]
[346410051,1734947482911,-500.0,0.00019726,2]
[346410052,1734947482922,-349.76111567,0.00019726,2]
[346410053,1734947483844,-53.95487501,0.00019726,2]
[346410054,1734947483854,-500.0,0.00019726,2]
[346410055,1734947483865,-639.09,0.00019726,2]
[346410056,1734947483875,-500.0,0.00019726,2]
[346410057,1734947483884,-500.0,0.00019726,2]
[346410058,1734947483893,-506.03133371,0.00019726,2]
[346410059,1734947483903,-500.0,0.00019726,2]
[346410060,1734947483912,-1843.97,0.00019726,2]
[346410061,1734947483921,-186.13668137,0.00019726,2]
[346410062,1734947484407,-358.89685235,0.00019452,2]
[346410063,1734947484430,-4736.87314765,0.00019452,2]
[346410064,1734947484440,-315.59648285,0.00019726,2]
[346410065,1734947484449,-500.0,0.00019726,2]
[346410066,1734947484458,-500.0,0.00019726,2]
[346410067,1734947484467,-500.0,0.00019726,2]
[346410068,1734947484476,-500.0,0.00019726,2]
[346410069,1734947484486,-500.0,0.00019726,2]
[346410070,1734947484496,-1309.56,0.00019726,2]
[346410071,1734947484505,-2191.72,0.00019726,2]
[346410072,1734947484514,-152.813578,0.00019726,2]
[346410073,1734947484523,-500.0,0.00019726,2]
[346410074,1734947484532,-500.0,0.00019726,2]
[346410075,1734947484542,-500.0,0.00019726,2]
[346410076,1734947484551,-500.0,0.00019726,2]
[346410077,1734947484560,-500.0,0.00019726,2]
[346410078,1734947484569,-500.0,0.00019726,2]
[346410079,1734947484578,-625.73,0.00019726,2]
[346410080,1734947484587,-500.0,0.00019726,2]
[346410081,1734947484596,-500.0,0.00019726,2]
[346410082,1734947484605,-500.0,0.00019726,2]
[346410083,1734947484614,-846.26,0.00019726,2]
[346410084,1734947484623,-500.0,0.00019726,2]
[346410085,1734947484632,-508.06740123,0.00019726,2]
[346410086,1734947484641,-500.0,0.00019726,2]
[346410087,1734947484650,-763.88,0.00019726,2]
[346410088,1734947484659,-500.0,0.00019726,2]
[346410089,1734947484668,-500.0,0.00019726,2]
[346410090,1734947484677,-500.0,0.00019726,2]
[346410091,1734947484686,-701.32,0.00019726,2]
[346410092,1734947484695,-500.0,0.00019726,2]
[346410093,1734947484703,-500.0,0.00019726,2]
[346410094,1734947484712,-151.0,0.00019726,2]
[346410095,1734947484723,-500.0,0.00019726,2]
[346410096,1734947484732,-1371.49,0.00019726,2]
[346410097,1734947484741,-500.0,0.00019726,2]
[346410098,1734947484750,-500.0,0.00019726,2]
[346410099,1734947484759,-500.0,0.00019726,2]
[346410100,1734947484768,-500.0,0.00019726,2]
[346410101,1734947484777,-1204.56,0.00019726,2]
[346410102,1734947484788,-4659.02,0.00019726,2]
[346410103,1734947484798,-500.0,0.00019726,2]
[346410104,1734947484807,-1199.99,0.00019726,2]
[346410105,1734947484816,-500.0,0.00019726,2]
[346410106,1734947484826,-622.14,0.00019726,2]
[346410107,1734947484836,-500.0,0.00019726,2]
[346410108,1734947484845,-500.0,0.00019726,2]
[346410109,1734947484855,-500.0,0.00019726,2]
[346410110,1734947484866,-296.7,0.00019726,2]
[346410111,1734947484876,-500.0,0.00019726,2]
[346410112,1734947484885,-505.09604517,0.00019726,2]
[346410113,1734947484895,-2368.51,0.00019726,2]
[346410114,1734947484905,-693.46,0.00019726,2]
[346410115,1734947484914,-500.0,0.00019726,2]
[346410116,1734947484923,-8891.18,0.00019726,2]
[346410117,1734947484932,-500.0,0.00019726,2]
[346410118,1734947484941,-500.0,0.00019726,2]
[346410119,1734947484951,-508.29,0.00019726,2]
[346410120,1734947484960,-571.14975515,0.00019726,2]
[346410121,1734947484969,-2477.11,0.00019726,2]
[346410122,1734947484978,-1505.92,0.00019726,2]
[346410123,1734947484987,-830.52,0.00019726,2]
[346410124,1734947484996,-500.0,0.00019726,2]
[346410125,1734947485006,-504.38000802,0.00019726,2]
[346410126,1734947485015,-500.0,0.00019726,2]
[346410127,1734947485024,-876.26,0.00019726,2]
[346410128,1734947485033,-500.0,0.00019726,2]
[346410129,1734947485042,-515.6062027,0.00019726,2]
[346410130,1734947485051,-1352.47,0.00019726,2]
[346410131,1734947485060,-26897.99,0.00019726,2]
[346410132,1734947485069,-299.39080005,0.00019726,2]
[346410133,1734947485078,-718.5,0.00019726,2]
[346410134,1734947485088,-500.0,0.00019726,2]
[346410135,1734947485097,-500.0,0.00019726,2]
[346410136,1734947485108,-500.0,0.00019726,2]
[346410137,1734947485117,-500.0,0.00019726,2]
[346410138,1734947485126,-2120.01,0.00019726,2]
[346410139,1734947485136,-500.0,0.00019726,2]
[346410140,1734947485145,-589.28,0.00019726,2]
[346410141,1734947485155,-507.48766273,0.00019726,2]
[346410142,1734947485164,-646.37,0.00019726,2]
[346410143,1734947485174,-815.49,0.00019726,2]
[346410144,1734947485183,-778.87,0.00019726,2]
[346410145,1734947485193,-1224.62,0.00019726,2]
[346410146,1734947485202,-500.0,0.00019726,2]
[346410147,1734947485211,-500.0,0.00019726,2]
[346410148,1734947485221,-960.85,0.00019726,2]
[346410149,1734947485230,-500.0,0.00019726,2]
[346410150,1734947485239,-2829.09,0.00019726,2]
[346410151,1734947485249,-569.53,0.00019726,2]
[346410152,1734947485258,-151.0,0.00019726,2]
[346410153,1734947485267,-151.0,0.00019726,2]
[346410154,1734947485276,-500.0,0.00019726,2]
[346410155,1734947485285,-357.69238247,0.00019726,2]
[346410156,1734947485295,-500.0,0.00019726,2]
[346410157,1734947485303,-500.0,0.00019726,2]
[346410158,1734947485312,-500.0,0.00019726,2]
[346410159,1734947485321,-1808.36,0.00019726,2]
[346410160,1734947485330,-500.0,0.00019726,2]
[346410161,1734947485339,-500.0,0.00019726,2]
[346410162,1734947485348,-4151.84,0.00019726,2]
[346410163,1734947485357,-500.0,0.00019726,2]
[346410164,1734947485366,-500.0,0.00019726,2]
[346410165,1734947485375,-949.41,0.00019726,2]
[346410166,1734947485384,-500.0,0.00019726,2]
[346410167,1734947485393,-287.61183135,0.00019726,2]
[346410168,1734947485402,-500.0,0.00019726,2]
[346410169,1734947485411,-1277.23,0.00019726,2]
[346410170,1734947485420,-500.0,0.00019726,2]
[346410171,1734947485429,-500.0,0.00019726,2]
[346410172,1734947485438,-6825.01,0.00019726,2]
[346410173,1734947485447,-500.0,0.00019726,2]
[346410174,1734947485456,-572.89,0.00019726,2]
[346410175,1734947485465,-151.0,0.00019726,2]
[346410176,1734947485475,-500.0,0.00019726,2]
[346410177,1734947485484,-791.351648,0.00019726,2]
[346410178,1734947485493,-500.0,0.00019726,2]
[346410179,1734947485502,-500.0,0.00019726,2]
[346410180,1734947485511,-500.0,0.00019726,2]
[346410181,1734947485520,-1366.78,0.00019726,2]
[346410182,1734947485529,-242.5,0.00019726,2]
[346410183,1734947485538,-655.36,0.00019726,2]
[346410184,1734947485547,-287.37833137,0.00019726,2]
[346410185,1734947485555,-1362.35,0.00019726,2]
[346410186,1734947485564,-211.548307,0.00019726,2]
[346410187,1734947485573,-189.928288,0.00019726,2]
[346410188,1734947485582,-500.0,0.00019726,2]
[346410189,1734947485592,-557.1559055,0.00019726,2]
[346410190,1734947485601,-486.092945,0.00019726,2]
[346410191,1734947485610,-500.0,0.00019726,2]
[346410192,1734947485619,-500.0,0.00019726,2]
[346410193,1734947485628,-500.0,0.00019726,2]
[346410194,1734947485637,-500.0,0.00019726,2]
[346410195,1734947485646,-511.54207684,0.00019726,2]
[346410196,1734947485655,-36097.72,0.00019726,2]
[346410197,1734947485663,-189.928288,0.00019726,2]
[346410198,1734947485672,-676.486543,0.00019726,2]
[346410199,1734947485681,-486.092945,0.00019726,2]
[346410200,1734947485690,-601.13,0.00019726,2]
[346410201,1734947485699,-500.0,0.00019726,2]
[346410202,1734947485708,-500.0,0.00019726,2]
[346410203,1734947485718,-151.0,0.00019726,2]
[346410204,1734947485730,-500.0,0.00019726,2]
[346410205,1734947485739,-500.0,0.00019726,2]
[346410206,1734947485748,-524.4,0.00019726,2]
[346410207,1734947485758,-500.0,0.00019726,2]
[346410208,1734947485768,-588.22,0.00019726,2]
[346410209,1734947485777,-2379.68,0.00019726,2]
[346410210,1734947485788,-500.0,0.00019726,2]
[346410211,1734947485798,-799.95,0.00019726,2]
[346410212,1734947485807,-500.0,0.00019726,2]
[346410213,1734947485816,-1996.68,0.00019726,2]
[346410214,1734947485827,-500.0,0.00019726,2]
[346410215,1734947485836,-500.0,0.00019726,2]
[346410216,1734947485845,-1404.36,0.00019726,2]
[346410217,1734947485854,-1038.62,0.00019726,2]
[346410218,1734947485864,-151.0,0.00019726,2]
[346410219,1734947485873,-4300.78,0.00019726,2]
[346410220,1734947485882,-3451.84,0.00019726,2]
[346410221,1734947485892,-500.0,0.00019726,2]
[346410222,1734947485901,-500.0,0.00019726,2]
[346410223,1734947485910,-232.654479,0.00019726,2]
[346410224,1734947485919,-151.7194621,0.00019726,2]
[346410225,1734947485928,-500.0,0.00019726,2]
[346410226,1734947485937,-500.0,0.00019726,2]
[346410227,1734947485946,-500.0,0.00019726,2]
[346410228,1734947485955,-814.83,0.00019726,2]
[346410229,1734947485963,-500.0,0.00019726,2]
[346410230,1734947485975,-5149.2,0.00019726,2]
[346410231,1734947485984,-250.58,0.00019726,2]
[346410232,1734947485993,-500.0,0.00019726,2]
[346410233,1734947486003,-500.0,0.00019726,2]
[346410234,1734947486011,-3027.09,0.00019726,2]
[346410235,1734947486021,-839.54,0.00019726,2]
[346410236,1734947486030,-3677.76,0.00019726,2]
[346410237,1734947486039,-1128.98,0.00019726,2]
[346410238,1734947486048,-1972.36,0.00019726,2]
[346410239,1734947486057,-605.74,0.00019726,2]
[346410240,1734947486066,-500.0,0.00019726,2]
[346410241,1734947486075,-500.0,0.00019726,2]
[346410242,1734947486084,-500.0,0.00019726,2]
[346410243,1734947486093,-1670.19,0.00019726,2]
[346410244,1734947486102,-500.0,0.00019726,2]
[346410245,1734947486110,-500.0,0.00019726,2]
[346410246,1734947486119,-1782.17,0.00019726,2]
[346410247,1734947486128,-504.48660576,0.00019726,2]
[346410248,1734947486137,-500.0,0.00019726,2]
[346410249,1734947486147,-661.961774,0.00019726,2]
[346410250,1734947486156,-789.011693,0.00019726,2]
[346410251,1734947486165,-756.28,0.00019726,2]
[346410252,1734947486174,-2785.68,0.00019726,2]
[346410253,1734947486183,-840.1,0.00019726,2]
[346410254,1734947486191,-540.85,0.00019726,2]
[346410255,1734947486201,-1706.79,0.00019726,2]
[346410256,1734947486210,-5247.93,0.00019726,2]
[346410257,1734947486219,-500.0,0.00019726,2]
[346410258,1734947486228,-1310.28,0.00019726,2]
[346410259,1734947486237,-981.58,0.00019726,2]
[346410260,1734947486247,-500.0,0.00019726,2]
[346410261,1734947486255,-661.961774,0.00019726,2]
[346410262,1734947486273,-3865.58,0.00019726,2]
[346410263,1734947486284,-500.0,0.00019726,2]
[346410264,1734947486293,-658.69857,0.00019726,2]
[346410265,1734947486301,-503.11740471,0.00019726,2]
[346410266,1734947486311,-1440.34,0.00019726,2]
[346410267,1734947486319,-500.0,0.00019726,2]
[346410268,1734947486329,-4079.48,0.00019726,2]
[346410269,1734947486337,-613.88954348,0.00019726,2]
[346410270,1734947486346,-500.0,0.00019726,2]
[346410271,1734947486355,-1407.36,0.00019726,2]
[346410272,1734947486364,-500.0,0.00019726,2]
[346410273,1734947486373,-500.0,0.00019726,2]
[346410274,1734947486383,-663.19,0.00019726,2]
[346410275,1734947486392,-3070.51,0.00019726,2]
[346410276,1734947486401,-500.0,0.00019726,2]
[346410277,1734947486410,-500.0,0.00019726,2]
[346410278,1734947486419,-350.30213107,0.00019726,2]
[346410279,1734947486428,-983.21,0.00019726,2]
[346410280,1734947486438,-500.0,0.00019726,2]
[346410281,1734947486447,-500.0,0.00019726,2]
[346410282,1734947486456,-500.0,0.00019726,2]
[346410283,1734947486465,-500.0,0.00019726,2]
[346410284,1734947486476,-500.0,0.00019726,2]
[346410285,1734947486485,-738.41,0.00019726,2]
[346410286,1734947486494,-2753.48,0.00019726,2]
[346410287,1734947486503,-2914.64,0.00019726,2]
[346410288,1734947486512,-500.0,0.00019726,2]
[346410289,1734947486521,-469.98529656,0.00019726,2]
[346410290,1734947486530,-151.0,0.00019726,2]
[346410291,1734947486539,-2566.24,0.00019726,2]
[346410292,1734947486549,-422.43609317,0.00019726,2]
[346410293,1734947486558,-26394.48,0.00019726,2]
[346410294,1734947486567,-500.0,0.00019726,2]
[346410295,1734947486576,-500.0,0.00019726,2]
[346410296,1734947486585,-831.88,0.00019726,2]
[346410297,1734947486594,-775.706163,0.00019726,2]
[346410298,1734947486603,-778.84,0.00019726,2]
[346410299,1734947486612,-500.0,0.00019726,2]
[346410300,1734947486621,-500.0,0.00019726,2]
[346410301,1734947486630,-5415.23,0.00019726,2]
[346410302,1734947486640,-500.0,0.00019726,2]
[346410303,1734947486649,-500.0,0.00019726,2]
[346410304,1734947486658,-500.0,0.00019726,2]
[346410305,1734947486667,-634.772678,0.00019726,2]
[346410306,1734947486676,-500.0,0.00019726,2]
[346410307,1734947486685,-500.0,0.00019726,2]
[346410308,1734947486694,-9787.3,0.00019726,2]
[346410309,1734947486703,-500.0,0.00019726,2]
[346410310,1734947486712,-151.0,0.00019726,2]
[346410311,1734947486722,-3789.06,0.00019726,2]
[346410312,1734947486731,-500.0,0.00019726,2]
[346410313,1734947486741,-618.24,0.00019726,2]
[346410314,1734947486751,-500.0,0.00019726,2]
[346410315,1734947486760,-500.0,0.00019726,2]
[346410316,1734947486770,-500.0,0.00019726,2]
[346410317,1734947486780,-500.0,0.00019726,2]
[346410318,1734947486791,-581.57,0.00019726,2]
[346410319,1734947486801,-3068.04,0.00019726,2]
[346410320,1734947486810,-500.0,0.00019726,2]
[346410321,1734947486819,-500.0,0.00019726,2]
[346410322,1734947486829,-922.85,0.00019726,2]
[346410323,1734947486839,-1251.5,0.00019726,2]
[346410324,1734947486848,-500.0,0.00019726,2]
[346410325,1734947486857,-1880.27,0.00019726,2]
[346410326,1734947486867,-25311.44,0.00019726,2]
[346410327,1734947486877,-500.0,0.00019726,2]
[346410328,1734947486887,-1537.55,0.00019726,2]
[346410329,1734947486896,-514.59,0.00019726,2]
[346410330,1734947486905,-3261.32,0.00019726,2]
[346410331,1734947486914,-500.0,0.00019726,2]
[346410332,1734947486924,-500.0,0.00019726,2]